{"text_format":"1","workbook":"xlsx","n_sheets":2,"sheets":["3 Schichtsystem","Mitarbeiter"],"not_rendered":{"charts":0,"images":1,"macros":1,"external_links":0,"defined_names":2,"comments":0,"pivot_tables":0},"unopened":[],"bounds":{"document_bytes":16777216,"sheet_cells":100000,"rows_first":2000,"rows_last":500,"rows_between":2000,"halvings":0,"cell_chars":16384,"cell_head_chars":4096},"cells_cut":0,"cells_raw":0,"read":"whole","date_system":"1900"}

{"sheet":"3 Schichtsystem","index":0,"n_rows":34,"n_cols":12,"rows_kept":34,"cut":false,"hidden":false,"merged":[[33,8,33,9],[1,1,3,9],[14,3,21,3],[14,4,21,4],[14,5,21,5],[14,6,21,6],[14,7,21,7],[14,8,21,8],[14,9,21,9],[7,3,13,3],[7,4,13,4],[7,5,13,5],[7,6,13,6],[7,7,13,7],[7,8,13,8],[7,9,13,9],[22,8,29,8],[22,9,29,9],[22,3,29,3],[22,4,29,4],[22,5,29,5],[22,6,29,6],[22,7,29,7]]}
[]
[null,"3 Schichtsystem Vorlage"]
[null,null,null,null,null,null,null,null,null,null,null,"Legende:"]
[null,null,null,null,null,null,null,null,null,null,null,"Frühschicht"]
[null,null,null,null,null,null,null,null,null,null,null,"Spätschicht"]
[null,null,null,null,null,null,null,null,null,null,null,"Nachtschicht"]
[null,null,null,"Montag","Dienstag","Mittwoch","Donnerstag","Freitag","Samstag","Sonntag"]
[null,null,"00:00:00","Barbara\nBertram\nBill\nLukas\nBob\nSven","Barbara\nLukas\nBob\nBrenda\nBetty\nBertram","Barbara\nLukas\nBob\nBrenda\nBetty\nBertram","Barbara\nLukas\nBob\nBrenda\nBetty\nBertram","Barbara\nLukas\nBob\nBrenda\nBetty\nBertram","Barbara\nLukas\nBob\nBrenda\nBetty\nBertram","Barbara\nLukas\nBob\nBrenda\nBetty\nBertram"]
[null,null,"01:00:00"]
[null,null,"02:00:00"]
[null,null,"03:00:00"]
[null,null,"04:00:00"]
[null,null,"05:00:00"]
[null,null,"06:00:00"]
[null,null,"07:00:00","Betty\nBob\nBarbara\nSven","Bertram\nBarbara\nBrenda\nBob","Barbara\nBill\nBetty\nBob","Bertram\nBrenda\nBill\nLukas","Barbara\nBob\nBertram","Bertram\nLukas\nBob\nBill","Betty\nBarbara\nBrenda"]
[null,null,"08:00:00"]
[null,null,"09:00:00"]
[null,null,"10:00:00"]
[null,null,"11:00:00"]
[null,null,"12:00:00"]
[null,null,"13:00:00"]
[null,null,"14:00:00"]
[null,null,"15:00:00","Betty\nBrenda\nBill\nBob","Bertram\nBob\nBrenda\nBill","Lukas\nBetty\nBill","Barbara\nBill\nBrenda\nBob","Betty\nLukas\nBill","Bill\nBetty\nBrenda\nBob","Lukas\nBetty\nBrenda"]
[null,null,"16:00:00"]
[null,null,"17:00:00"]
[null,null,"18:00:00"]
[null,null,"19:00:00"]
[null,null,"20:00:00"]
[null,null,"21:00:00"]
[null,null,"22:00:00"]
[null,null,"23:00:00","Bertram\nBill","Lukas\nBill","Lukas\nBertram","Lukas\nBrenda","Lukas\nBarbara","Lukas\nBetty","Lukas\nBob"]
[]
[]
[null,null,null,null,null,null,null,null,{"$f":"HYPERLINK(\"https://www.papershift.com/\",\"Powered by © Papershift.com\")","v":"Powered by © Papershift.com"}]

{"sheet":"Mitarbeiter","index":1,"n_rows":43,"n_cols":8,"rows_kept":43,"cut":false,"hidden":false,"merged":[[7,2,7,3],[6,2,6,3],[42,6,42,7],[8,2,8,3],[3,1,5,7]]}
[]
[]
[]
[null,"Übersicht Mitarbeiter"]
[]
[]
[null,null,"Legende:"]
[null,null,"Automatische Berechnung"]
[null,null,"Manuell Ausfüllen"]
[]
[null,"ID","Name","Stundenlohn","Einteilungen","Wochenstunden","Gehalt/Woche","Gehalt/Monat"]
[null,1,"Bob",12,6,{"$f":"E12*8","v":48},{"$f":"D12*F12","v":576},{"$f":"G12*4","v":2304}]
[null,2,"Sven",15,7,{"$f":"E13*8","v":56},840,{"$f":"G13*4","v":3360}]
[null,3,"Brenda",56,8,{"$f":"E14*8","v":64},3584,14336]
[null,4,"Barbara",21,5,{"$f":"E15*8","v":40},840,3360]
[null,5,"Betty",25,4,32,800,3200]
[null,6,"Bertram",18,6,48,864,3456]
[null,7,"Bill",16,7,56,896,3584]
[null,8,"Lukas",12,6,48,576,2304]
[null,9]
[null,10]
[null,11]
[null,12]
[null,13]
[null,14]
[null,15]
[null,16]
[null,17]
[null,18]
[null,19]
[null,20]
[null,21]
[null,22]
[null,23]
[null,24]
[null,25]
[null,26]
[null,27]
[null,28]
[null,29]
[null,30]
[]
[null,null,null,null,null,null,{"$f":"HYPERLINK(\"https://www.papershift.com/\",\"Powered by © Papershift.com\")","v":"Powered by © Papershift.com"}]